Department family,Entity,Date,Expense type,Expense area,Supplier,Transaction number,Amount,VAT registration number
Department for Business Energy and Industrial Strategy,Intellectual Property Office,06/11/2020,Pay Costs,Patent Directorate,Acorn Recruitment Ltd,954810,575.42,Not Applicable
Department for Business Energy and Industrial Strategy,Intellectual Property Office,05/11/2020,Pay Costs,Patent Directorate,Acorn Recruitment Ltd,961368,673.1,Not Applicable
Department for Business Energy and Industrial Strategy,Intellectual Property Office,10/11/2020,Pay Costs,Patent Directorate,Acorn Recruitment Ltd,961970,673.1,Not Applicable
Department for Business Energy and Industrial Strategy,Intellectual Property Office,18/11/2020,Pay Costs,Patent Directorate,Acorn Recruitment Ltd,962521,587.09,Not Applicable
Department for Business Energy and Industrial Strategy,Intellectual Property Office,17/11/2020,Pay Costs,Patent Directorate,Acorn Recruitment Ltd,962522,673.1,Not Applicable
Department for Business Energy and Industrial Strategy,Intellectual Property Office,25/11/2020,Pay Costs,Patent Directorate,Acorn Recruitment Ltd,963065,583.2,Not Applicable
Department for Business Energy and Industrial Strategy,Intellectual Property Office,25/11/2020,Pay Costs,Patent Directorate,Acorn Recruitment Ltd,963066,673.1,Not Applicable
Department for Business Energy and Industrial Strategy,Intellectual Property Office,04/11/2020,Office Supplies,Patent Directorate,British Library,7000171151,"2,254.26",Not Applicable
Department for Business Energy and Industrial Strategy,Intellectual Property Office,03/11/2020,Miscellaneous Expenses General,People Places & Serv Directorate,British Standards Institution BSI,95620398,"1,260.00",Not Applicable
Department for Business Energy and Industrial Strategy,Intellectual Property Office,03/11/2020,Miscellaneous Expenses General,People Places & Serv Directorate,British Standards Institution BSI,95620399,"3,780.00",Not Applicable
Department for Business Energy and Industrial Strategy,Intellectual Property Office,27/11/2020,Miscellaneous Expenses General,Patent Directorate,British Standards Institution BSI,95628680,"2,460.00",Not Applicable
Department for Business Energy and Industrial Strategy,Intellectual Property Office,24/11/2020,Information Technology,People Places & Serv Directorate,British Standards Institution BSI,95635149,"3,240.00",Not Applicable
Department for Business Energy and Industrial Strategy,Intellectual Property Office,03/11/2020,Staff Costs,People Places & Serv Directorate,Computeraid Ltd,22355,"4,320.00",Not Applicable
Department for Business Energy and Industrial Strategy,Intellectual Property Office,03/11/2020,Staff Costs,People Places & Serv Directorate,Computeraid Ltd,22356,"1,440.00",Not Applicable
Department for Business Energy and Industrial Strategy,Intellectual Property Office,09/11/2020,Staff Costs,People Places & Serv Directorate,Computeraid Ltd,22358,"3,168.00",Not Applicable
Department for Business Energy and Industrial Strategy,Intellectual Property Office,19/11/2020,Accommodation,People Places & Serv Directorate,Corona Energy,15652478,"1,064.78",Not Applicable
Department for Business Energy and Industrial Strategy,Intellectual Property Office,25/11/2020,Accommodation,People Places & Serv Directorate,Corona Energy,15652495,"3,105.91",Not Applicable
Department for Business Energy and Industrial Strategy,Intellectual Property Office,03/11/2020,Postage & Delivery Costs,People Places & Serv Directorate,DHL International (UK) Ltd,BRSR004029722,"2,247.48",Not Applicable
Department for Business Energy and Industrial Strategy,Intellectual Property Office,04/11/2020,Postage & Delivery Costs,People Places & Serv Directorate,DHL International (UK) Ltd,BRSR004050158,504.03,Not Applicable
Department for Business Energy and Industrial Strategy,Intellectual Property Office,11/11/2020,Postage & Delivery Costs,People Places & Serv Directorate,DHL International (UK) Ltd,BRSR004074195,508.36,Not Applicable
Department for Business Energy and Industrial Strategy,Intellectual Property Office,25/11/2020,Accommodation,People Places & Serv Directorate,Pro Investments Limited,156072,"24,750.00",Not Applicable
Department for Business Energy and Industrial Strategy,Intellectual Property Office,25/11/2020,Accommodation,People Places & Serv Directorate,Pro Investments Limited,156073,"1,905.50",Not Applicable
Department for Business Energy and Industrial Strategy,Intellectual Property Office,09/11/2020,Pay Costs,Projects,Hays Specialist Recruitment,1010910303,"3,763.26",Not Applicable
Department for Business Energy and Industrial Strategy,Intellectual Property Office,12/11/2020,Pay Costs,Projects,Hays Specialist Recruitment,1010912486,"3,357.96",Not Applicable
Department for Business Energy and Industrial Strategy,Intellectual Property Office,12/11/2020,Staff Costs,IT Directorate,Hays Specialist Recruitment,1010919257,"5,697.22",Not Applicable
Department for Business Energy and Industrial Strategy,Intellectual Property Office,12/11/2020,Pay Costs,Projects,Hays Specialist Recruitment,1010923296,"3,010.61",Not Applicable
Department for Business Energy and Industrial Strategy,Intellectual Property Office,12/11/2020,Pay Costs,Projects,Hays Specialist Recruitment,1010923832,"3,357.96",Not Applicable
Department for Business Energy and Industrial Strategy,Intellectual Property Office,13/11/2020,Pay Costs,Projects,Hays Specialist Recruitment,1010929252,"1,079.40",Not Applicable
Department for Business Energy and Industrial Strategy,Intellectual Property Office,20/11/2020,Pay Costs,Projects,Hays Specialist Recruitment,1010938318,"3,763.26",Not Applicable
Department for Business Energy and Industrial Strategy,Intellectual Property Office,20/11/2020,Pay Costs,Projects,Hays Specialist Recruitment,1010944606,"1,069.61",Not Applicable
Department for Business Energy and Industrial Strategy,Intellectual Property Office,27/11/2020,Pay Costs,Projects,Hays Specialist Recruitment,1010952839,"3,357.96",Not Applicable
Department for Business Energy and Industrial Strategy,Intellectual Property Office,27/11/2020,Pay Costs,Projects,Hays Specialist Recruitment,1010959710,"1,069.31",Not Applicable
Department for Business Energy and Industrial Strategy,Intellectual Property Office,06/11/2020,Postage & Delivery Costs,People Places & Serv Directorate,Zenith,246139,"1,073.52",Not Applicable
Department for Business Energy and Industrial Strategy,Intellectual Property Office,27/11/2020,Postage & Delivery Costs,People Places & Serv Directorate,Zenith,249120,"1,073.52",Not Applicable
Department for Business Energy and Industrial Strategy,Intellectual Property Office,24/11/2020,Legal & Hearings,Trade Mark Directorate,Marten Walsh Cherer Ltd,113328,"1,000.28",Not Applicable
Department for Business Energy and Industrial Strategy,Intellectual Property Office,02/11/2020,Staff Costs,People Places & Serv Directorate,MyCSP Ltd,18182,"2,040.00",Not Applicable
Department for Business Energy and Industrial Strategy,Intellectual Property Office,24/11/2020,Pay Costs,People Places & Serv Directorate,C2W Support,34479,999.99,Not Applicable
Department for Business Energy and Industrial Strategy,Intellectual Property Office,24/11/2020,Information Technology,IT Directorate,Open Text AG,9002158744,"96,116.16",Not Applicable
Department for Business Energy and Industrial Strategy,Intellectual Property Office,03/11/2020,Staff Costs,IT Directorate,Open University,425624,"1,032.00",Not Applicable
Department for Business Energy and Industrial Strategy,Intellectual Property Office,03/11/2020,Pay Costs,People Places & Serv Directorate,Park Retail Ltd t/a Love2reward,54770707,"1,523.90",Not Applicable
Department for Business Energy and Industrial Strategy,Intellectual Property Office,10/11/2020,Pay Costs,People Places & Serv Directorate,Park Retail Ltd t/a Love2reward,54795094,"1,710.10",Not Applicable
Department for Business Energy and Industrial Strategy,Intellectual Property Office,10/11/2020,Supporting UK Business,Projects,Park Retail Ltd t/a Love2reward,54795094,39.2,Not Applicable
Department for Business Energy and Industrial Strategy,Intellectual Property Office,10/11/2020,Supporting UK Business,Patent Directorate,Park Retail Ltd t/a Love2reward,54795094,98,Not Applicable
Department for Business Energy and Industrial Strategy,Intellectual Property Office,17/11/2020,Pay Costs,People Places & Serv Directorate,Park Retail Ltd t/a Love2reward,54823565,"4,669.70",Not Applicable
Department for Business Energy and Industrial Strategy,Intellectual Property Office,24/11/2020,Pay Costs,People Places & Serv Directorate,Park Retail Ltd t/a Love2reward,54856030,"3,278.10",Not Applicable
Department for Business Energy and Industrial Strategy,Intellectual Property Office,09/11/2020,Information Technology,IT Directorate,Red Gate Software Ltd,377571,"140,482.80",Not Applicable
Department for Business Energy and Industrial Strategy,Intellectual Property Office,04/11/2020,Postage & Delivery Costs,People Places & Serv Directorate,Royal Mail,9061820065,"2,204.21",Not Applicable
Department for Business Energy and Industrial Strategy,Intellectual Property Office,25/11/2020,Postage & Delivery Costs,People Places & Serv Directorate,Royal Mail,9061923629,"1,655.89",Not Applicable
Department for Business Energy and Industrial Strategy,Intellectual Property Office,09/11/2020,Information Technology,IT Directorate,Specialist Computer Centres Plc,OP/M854476,"214,534.80",Not Applicable
Department for Business Energy and Industrial Strategy,Intellectual Property Office,16/11/2020,Information Technology,IT Directorate,Specialist Computer Centres Plc,OP/M860178,"18,142.43",Not Applicable
Department for Business Energy and Industrial Strategy,Intellectual Property Office,16/11/2020,Information Technology,IT Directorate,Specialist Computer Centres Plc,OP/M860179,"3,375.30",Not Applicable
Department for Business Energy and Industrial Strategy,Intellectual Property Office,16/11/2020,Information Technology,IT Directorate,Specialist Computer Centres Plc,OP/M860180,"14,547.88",Not Applicable
Department for Business Energy and Industrial Strategy,Intellectual Property Office,16/11/2020,Information Technology,IT Directorate,Specialist Computer Centres Plc,OP/M860181,"2,292.05",Not Applicable
Department for Business Energy and Industrial Strategy,Intellectual Property Office,16/11/2020,Information Technology,IT Directorate,Specialist Computer Centres Plc,OP/M860182,"2,035.10",Not Applicable
Department for Business Energy and Industrial Strategy,Intellectual Property Office,16/11/2020,Information Technology,IT Directorate,Specialist Computer Centres Plc,OP/M860183,"1,617.07",Not Applicable
Department for Business Energy and Industrial Strategy,Intellectual Property Office,16/11/2020,Information Technology,IT Directorate,Specialist Computer Centres Plc,OP/M860186,"3,332.77",Not Applicable
Department for Business Energy and Industrial Strategy,Intellectual Property Office,16/11/2020,Information Technology,IT Directorate,Specialist Computer Centres Plc,OP/M860186,"1,227.86",Not Applicable
Department for Business Energy and Industrial Strategy,Intellectual Property Office,16/11/2020,Information Technology,IT Directorate,Specialist Computer Centres Plc,OP/M860187,"1,798.55",Not Applicable
Department for Business Energy and Industrial Strategy,Intellectual Property Office,16/11/2020,Information Technology,IT Directorate,Specialist Computer Centres Plc,OP/M860188,533.58,Not Applicable
Department for Business Energy and Industrial Strategy,Intellectual Property Office,13/11/2020,Accommodation,People Places & Serv Directorate,Thomas Waste Management Ltd,263161,696,Not Applicable
Department for Business Energy and Industrial Strategy,Intellectual Property Office,10/11/2020,Information Technology,Patent Directorate,Thomson Reuters,6650038586,"-87,150.95",Not Applicable
Department for Business Energy and Industrial Strategy,Intellectual Property Office,10/11/2020,Information Technology,Patent Directorate,Thomson Reuters,6801021979,"1,564.15",Not Applicable
Department for Business Energy and Industrial Strategy,Intellectual Property Office,10/11/2020,Information Technology,Patent Directorate,Thomson Reuters,6801033527,"87,312.96",Not Applicable
Department for Business Energy and Industrial Strategy,Intellectual Property Office,10/11/2020,Travel & Subsistence,People Places & Serv Directorate,Veezu Ltd T/A Dragon Taxis (Newpor,42111,"1,468.68",Not Applicable
Department for Business Energy and Industrial Strategy,Intellectual Property Office,10/11/2020,Travel & Subsistence,People Places & Serv Directorate,Veezu Ltd T/A Dragon Taxis (Newpor,42111,"1,046.04",Not Applicable
Department for Business Energy and Industrial Strategy,Intellectual Property Office,23/11/2020,Supporting UK Business,Innovation Directorate,Withers &  Rogers LLP,6801966,"2,500.00",Not Applicable
Department for Business Energy and Industrial Strategy,Intellectual Property Office,19/11/2020,Marketing & Publicity,Innovation Directorate,Aardman Animations Ltd,40099,600,Not Applicable
Department for Business Energy and Industrial Strategy,Intellectual Property Office,04/11/2020,Office Supplies,People Places & Serv Directorate,Antalis Limited,9513946,"2,039.00",Not Applicable
Department for Business Energy and Industrial Strategy,Intellectual Property Office,11/11/2020,Information Technology,IT Directorate,Computacenter (UK) ltd,3882689053,552.13,Not Applicable
Department for Business Energy and Industrial Strategy,Intellectual Property Office,26/11/2020,Miscellaneous Expenses General,People Places & Serv Directorate,IET Services Ltd,80005833,"1,670.00",Not Applicable
Department for Business Energy and Industrial Strategy,Intellectual Property Office,13/11/2020,Supporting UK Business,International Policy Directorate,Foreign & Commonwealth Office,1130444,"13,472.74",Not Applicable
Department for Business Energy and Industrial Strategy,Intellectual Property Office,13/11/2020,Computer Contracts,People Places & Serv Directorate,HM TREASURY,43029,"54,300.00",Not Applicable
Department for Business Energy and Industrial Strategy,Intellectual Property Office,04/11/2020,Information Technology,Projects,Advanced Business Solutions,ARBK/99055628,"3,825.00",Not Applicable
Department for Business Energy and Industrial Strategy,Intellectual Property Office,11/11/2020,Accommodation,People Places & Serv Directorate,RICO LOGISTICS LTD,SINRLLFS00278890,"1,645.38",Not Applicable
Department for Business Energy and Industrial Strategy,Intellectual Property Office,10/11/2020,Accommodation,People Places & Serv Directorate,RICO LOGISTICS LTD,SINRLLFS00279921,834.56,Not Applicable
Department for Business Energy and Industrial Strategy,Intellectual Property Office,18/11/2020,Accommodation,People Places & Serv Directorate,RICO LOGISTICS LTD,SINRLLFS00281366,"1,177.82",Not Applicable
Department for Business Energy and Industrial Strategy,Intellectual Property Office,24/11/2020,Accommodation,People Places & Serv Directorate,RICO LOGISTICS LTD,SINRLLFS00282587,856.96,Not Applicable
Department for Business Energy and Industrial Strategy,Intellectual Property Office,11/11/2020,Supporting UK Business,Innovation Directorate,INNGOT LTD,R2011-1,"2,500.00",Not Applicable
Department for Business Energy and Industrial Strategy,Intellectual Property Office,18/11/2020,Supporting UK Business,Innovation Directorate,INNGOT LTD,R2011/4,"2,500.00",Not Applicable
Department for Business Energy and Industrial Strategy,Intellectual Property Office,27/11/2020,Supporting UK Business,Innovation Directorate,INNGOT LTD,R2011/6,"2,500.00",Not Applicable
Department for Business Energy and Industrial Strategy,Intellectual Property Office,04/11/2020,Pay Costs,Finance Directorate,Accountancy Recruitment Wales,999265,957.9,Not Applicable
Department for Business Energy and Industrial Strategy,Intellectual Property Office,04/11/2020,Pay Costs,Projects,Accountancy Recruitment Wales,999266,"2,036.70",Not Applicable
Department for Business Energy and Industrial Strategy,Intellectual Property Office,11/11/2020,Pay Costs,Finance Directorate,Accountancy Recruitment Wales,999271,"2,269.20",Not Applicable
Department for Business Energy and Industrial Strategy,Intellectual Property Office,11/11/2020,Pay Costs,Finance Directorate,Accountancy Recruitment Wales,999272,"1,171.34",Not Applicable
Department for Business Energy and Industrial Strategy,Intellectual Property Office,11/11/2020,Pay Costs,Projects,Accountancy Recruitment Wales,999273,"2,135.28",Not Applicable
Department for Business Energy and Industrial Strategy,Intellectual Property Office,11/11/2020,Pay Costs,Finance Directorate,Accountancy Recruitment Wales,999274,"1,085.58",Not Applicable
Department for Business Energy and Industrial Strategy,Intellectual Property Office,18/11/2020,Pay Costs,Finance Directorate,Accountancy Recruitment Wales,999276,"2,190.16",Not Applicable
Department for Business Energy and Industrial Strategy,Intellectual Property Office,18/11/2020,Pay Costs,Projects,Accountancy Recruitment Wales,999277,"2,094.36",Not Applicable
Department for Business Energy and Industrial Strategy,Intellectual Property Office,18/11/2020,Pay Costs,Finance Directorate,Accountancy Recruitment Wales,999278,"1,085.58",Not Applicable
Department for Business Energy and Industrial Strategy,Intellectual Property Office,18/11/2020,Pay Costs,Finance Directorate,Accountancy Recruitment Wales,999279,986.74,Not Applicable
Department for Business Energy and Industrial Strategy,Intellectual Property Office,25/11/2020,Pay Costs,Projects,Accountancy Recruitment Wales,999285,"2,104.60",Not Applicable
Department for Business Energy and Industrial Strategy,Intellectual Property Office,25/11/2020,Pay Costs,Finance Directorate,Accountancy Recruitment Wales,999286,"1,085.58",Not Applicable
Department for Business Energy and Industrial Strategy,Intellectual Property Office,25/11/2020,Pay Costs,Finance Directorate,Accountancy Recruitment Wales,999287,"2,129.70",Not Applicable
Department for Business Energy and Industrial Strategy,Intellectual Property Office,25/11/2020,Pay Costs,Finance Directorate,Accountancy Recruitment Wales,999288,867.9,Not Applicable
Department for Business Energy and Industrial Strategy,Intellectual Property Office,05/11/2020,Postage & Delivery Costs,People Places & Serv Directorate,CitySprint (UK) Ltd,3483525,"5,921.64",Not Applicable
Department for Business Energy and Industrial Strategy,Intellectual Property Office,11/11/2020,Accommodation,People Places & Serv Directorate,EDF ENERGY,8651085,"23,534.15",Not Applicable
Department for Business Energy and Industrial Strategy,Intellectual Property Office,12/11/2020,Accommodation,People Places & Serv Directorate,EDF ENERGY,8655247,"1,337.54",Not Applicable
Department for Business Energy and Industrial Strategy,Intellectual Property Office,11/11/2020,Staff Costs,People Places & Serv Directorate,Sodexo Motivation Solutions UK Ltd,3695895,"5,320.06",Not Applicable
Department for Business Energy and Industrial Strategy,Intellectual Property Office,11/11/2020,Staff Costs,People Places & Serv Directorate,Sodexo Motivation Solutions UK Ltd,3695929,"5,122.74",Not Applicable
Department for Business Energy and Industrial Strategy,Intellectual Property Office,24/11/2020,Telecoms,IT Directorate,EE Ltd,1285799624,"1,097.99",Not Applicable
Department for Business Energy and Industrial Strategy,Intellectual Property Office,18/11/2020,Legal & Hearings,Trade Mark Directorate,Government Legal Department,486432,"2,447.76",Not Applicable
Department for Business Energy and Industrial Strategy,Intellectual Property Office,02/11/2020,Office Supplies,Patent Directorate,Euromoney,INV-EMT60195000,"11,988.00",Not Applicable
Department for Business Energy and Industrial Strategy,Intellectual Property Office,12/11/2020,Miscellaneous Expenses General,Innovation Directorate,Red Beetle Films Ltd,155,"1,900.00",Not Applicable
Department for Business Energy and Industrial Strategy,Intellectual Property Office,11/11/2020,Miscellaneous Expenses General,Innovation Directorate,Red Beetle Films Ltd,158,"1,960.00",Not Applicable
Department for Business Energy and Industrial Strategy,Intellectual Property Office,18/11/2020,Supporting UK Business,Copyright and Enforcement Directorate,whiteBULLET Solutions Ltd,CN-20-3285,"-3,600.00",Not Applicable
Department for Business Energy and Industrial Strategy,Intellectual Property Office,18/11/2020,Supporting UK Business,Copyright and Enforcement Directorate,whiteBULLET Solutions Ltd,CN-20/3286,"-4,800.00",Not Applicable
Department for Business Energy and Industrial Strategy,Intellectual Property Office,18/11/2020,Supporting UK Business,Copyright and Enforcement Directorate,whiteBULLET Solutions Ltd,INV-20-3273,"3,600.00",Not Applicable
Department for Business Energy and Industrial Strategy,Intellectual Property Office,18/11/2020,Supporting UK Business,Copyright and Enforcement Directorate,whiteBULLET Solutions Ltd,INV-20/3272,"4,800.00",Not Applicable
Department for Business Energy and Industrial Strategy,Intellectual Property Office,23/11/2020,Supporting UK Business,Copyright and Enforcement Directorate,whiteBULLET Solutions Ltd,INV-20/3287,"118,800.00",Not Applicable
Department for Business Energy and Industrial Strategy,Intellectual Property Office,12/11/2020,Information Technology,Patent Directorate,European Patent Office,40300633,"128,348.59",Not Applicable
Department for Business Energy and Industrial Strategy,Intellectual Property Office,19/11/2020,Information Technology,IT Directorate,Sword SA,SIP-CVU-F2011230,"1,075.00",Not Applicable
Department for Business Energy and Industrial Strategy,Intellectual Property Office,17/11/2020,Supporting UK Business,Innovation Directorate,HARPER MACLEOD LLP,D1093189,"2,500.00",Not Applicable
Department for Business Energy and Industrial Strategy,Intellectual Property Office,24/11/2020,Miscellaneous Expenses General,People Places & Serv Directorate,Insight Health Screening,13777,"1,180.00",Not Applicable
Department for Business Energy and Industrial Strategy,Intellectual Property Office,03/11/2020,Miscellaneous Expenses General,People Places & Serv Directorate,Insight Health Screening,13824,"3,047.50",Not Applicable
Department for Business Energy and Industrial Strategy,Intellectual Property Office,24/11/2020,Supporting UK Business,Innovation Directorate,Scintilla,INV-02443,"2,500.00",Not Applicable
Department for Business Energy and Industrial Strategy,Intellectual Property Office,19/11/2020,Legal & Hearings,Trade Mark Directorate,Professor R E Annand,EXPAUG-NOV-20,"1,200.00",Not Applicable
Department for Business Energy and Industrial Strategy,Intellectual Property Office,03/11/2020,Staff Costs,Patent Directorate,Crackergroup Limited,IPO/2672/12,"7,200.00",Not Applicable
Department for Business Energy and Industrial Strategy,Intellectual Property Office,12/11/2020,Information Technology,IT Directorate,Ingram Publishing,164989,"5,400.00",Not Applicable
Department for Business Energy and Industrial Strategy,Intellectual Property Office,10/11/2020,Information Technology,IT Directorate,Nitro,916927,"16,884.00",Not Applicable
Department for Business Energy and Industrial Strategy,Intellectual Property Office,19/11/2020,Information Technology,Patent Directorate,Springer Nature Customer Service Centre,2935831915,"19,234.34",Not Applicable
Department for Business Energy and Industrial Strategy,Intellectual Property Office,23/11/2020,Supporting UK Business,Innovation Directorate,Appleyard Lees,148003,"2,500.00",Not Applicable
Department for Business Energy and Industrial Strategy,Intellectual Property Office,03/11/2020,Staff Costs,People Places & Serv Directorate,KPMG LLP (CSL),5502167064,"1,501.20",Not Applicable
Department for Business Energy and Industrial Strategy,Intellectual Property Office,11/11/2020,Staff Costs,People Places & Serv Directorate,KPMG LLP (CSL),5502169072,"2,708.40",Not Applicable
Department for Business Energy and Industrial Strategy,Intellectual Property Office,30/11/2020,Staff Costs,People Places & Serv Directorate,KPMG LLP (CSL),5502174915,"1,501.20",Not Applicable
Department for Business Energy and Industrial Strategy,Intellectual Property Office,11/11/2020,Staff Costs,People Places & Serv Directorate,Korn Ferry UK limited,1195056347,"74,713.20",Not Applicable
Department for Business Energy and Industrial Strategy,Intellectual Property Office,06/11/2020,Supporting UK Business,Innovation Directorate,Ouzman IP Limited,877,"2,500.00",Not Applicable
Department for Business Energy and Industrial Strategy,Intellectual Property Office,25/11/2020,Information Technology,IT Directorate,Loop1 UK Limited,21066,"12,450.00",Not Applicable
Department for Business Energy and Industrial Strategy,Intellectual Property Office,18/11/2020,Information Technology,IT Directorate,Nintex UK Ltd,INV29220,"10,356.16",Not Applicable
Department for Business Energy and Industrial Strategy,Intellectual Property Office,04/11/2020,Information Technology,Projects,Responsiv Solutions Limited,RSL1002,"25,680.00",Not Applicable
Department for Business Energy and Industrial Strategy,Intellectual Property Office,04/11/2020,Information Technology,Projects,Responsiv Solutions Limited,RSL1003,"9,765.00",Not Applicable
Department for Business Energy and Industrial Strategy,Intellectual Property Office,04/11/2020,Other FA at Cost,IT Directorate,Responsiv Solutions Limited,RSL1004,"12,672.00",Not Applicable
Department for Business Energy and Industrial Strategy,Intellectual Property Office,10/11/2020,Supporting UK Business,Innovation Directorate,Bridle Intellectual Property Ltd,133-021,"2,500.00",Not Applicable
Department for Business Energy and Industrial Strategy,Intellectual Property Office,12/11/2020,Information Technology,IT Directorate,proAV Limited,190335,"4,176.00",Not Applicable
Department for Business Energy and Industrial Strategy,Intellectual Property Office,25/11/2020,Accommodation,People Places & Serv Directorate,London Borough of Tower Hamlets,65248175-2020,"425,600.00",Not Applicable
Department for Business Energy and Industrial Strategy,Intellectual Property Office,03/11/2020,Information Technology,IT Directorate,Equal Experts UK Limited,INV-7948,"15,000.00",Not Applicable
Department for Business Energy and Industrial Strategy,Intellectual Property Office,12/11/2020,Pay Costs,Innovation Directorate,"Department Business, Energy & Industrial",6.15E+11,"22,732.68",Not Applicable
Department for Business Energy and Industrial Strategy,Intellectual Property Office,12/11/2020,Pay Costs,Innovation Directorate,"Department Business, Energy & Industrial",6.15E+11,"32,308.08",Not Applicable
Department for Business Energy and Industrial Strategy,Intellectual Property Office,09/11/2020,Accommodation,People Places & Serv Directorate,Newport Wafer Fab Limited,SD00002509,"11,500.00",Not Applicable
Department for Business Energy and Industrial Strategy,Intellectual Property Office,03/11/2020,Accommodation,People Places & Serv Directorate,Newport Wafer Fab Limited,SD00002510,"6,975.00",Not Applicable
Department for Business Energy and Industrial Strategy,Intellectual Property Office,19/11/2020,Information Technology,IT Directorate,JetBrains,INVCZ3289144,"1,900.66",Not Applicable
Department for Business Energy and Industrial Strategy,Intellectual Property Office,12/11/2020,Supporting UK Business,Innovation Directorate,IP21 LTD,26010,"2,499.60",Not Applicable
Department for Business Energy and Industrial Strategy,Intellectual Property Office,11/11/2020,Telecoms,IT Directorate,Colt Technology Services,2.02E+12,"1,860.00",Not Applicable
Department for Business Energy and Industrial Strategy,Intellectual Property Office,10/11/2020,Accommodation,People Places & Serv Directorate,Shred It Ltd,9504506194,981,Not Applicable
Department for Business Energy and Industrial Strategy,Intellectual Property Office,27/11/2020,Accommodation,People Places & Serv Directorate,Shred It Ltd,9504537466,981,Not Applicable
Department for Business Energy and Industrial Strategy,Intellectual Property Office,23/11/2020,Supporting UK Business,Innovation Directorate,Keltie LLP,152709,"2,500.00",Not Applicable
Department for Business Energy and Industrial Strategy,Intellectual Property Office,05/11/2020,Supporting UK Business,Innovation Directorate,Brooke-Jones Ltd,10848,"2,500.00",Not Applicable
Department for Business Energy and Industrial Strategy,Intellectual Property Office,10/11/2020,Information Technology,IT Directorate,8X8 Solutions,2829485,"2,379.25",Not Applicable
Department for Business Energy and Industrial Strategy,Intellectual Property Office,19/11/2020,Accommodation,People Places & Serv Directorate,Brookfield Properties (UK PM) Limited,2017/975,"2,714.65",Not Applicable
Department for Business Energy and Industrial Strategy,Intellectual Property Office,17/11/2020,Supporting UK Business,Innovation Directorate,Clarion Solicitors Limited,148827,"2,500.00",Not Applicable
Department for Business Energy and Industrial Strategy,Intellectual Property Office,17/11/2020,Supporting UK Business,Innovation Directorate,Clarion Solicitors Limited,149149,"2,500.00",Not Applicable
Department for Business Energy and Industrial Strategy,Intellectual Property Office,17/11/2020,Supporting UK Business,Innovation Directorate,Clarion Solicitors Limited,149223,"2,500.00",Not Applicable
Department for Business Energy and Industrial Strategy,Intellectual Property Office,24/11/2020,Supporting UK Business,Innovation Directorate,Clarion Solicitors Limited,151173,"2,500.00",Not Applicable
Department for Business Energy and Industrial Strategy,Intellectual Property Office,26/11/2020,Supporting UK Business,Innovation Directorate,Clarion Solicitors Limited,151265,"2,500.00",Not Applicable
Department for Business Energy and Industrial Strategy,Intellectual Property Office,11/11/2020,Telecoms,IT Directorate,Gamma Telecom Ltd,GA1570671,"2,127.12",Not Applicable
Department for Business Energy and Industrial Strategy,Intellectual Property Office,18/11/2020,Staff Costs,People Places & Serv Directorate,People Untapped Limited,INV-1202,"2,640.00",Not Applicable
Department for Business Energy and Industrial Strategy,Intellectual Property Office,18/11/2020,Accommodation,People Places & Serv Directorate,Apex Security Engineering Ltd,ATF-9711,"4,074.00",Not Applicable
Department for Business Energy and Industrial Strategy,Intellectual Property Office,10/11/2020,Pay Costs,IT Directorate,Alexander Mann Solutions Limited,2216088,"3,986.48",Not Applicable
Department for Business Energy and Industrial Strategy,Intellectual Property Office,02/11/2020,Pay Costs,Patent Directorate,Alexander Mann Solutions Limited,2218224,"1,246.51",Not Applicable
Department for Business Energy and Industrial Strategy,Intellectual Property Office,02/11/2020,Pay Costs,Patent Directorate,Alexander Mann Solutions Limited,2218225,"1,246.51",Not Applicable
Department for Business Energy and Industrial Strategy,Intellectual Property Office,02/11/2020,Pay Costs,Patent Directorate,Alexander Mann Solutions Limited,2218226,"1,246.51",Not Applicable
Department for Business Energy and Industrial Strategy,Intellectual Property Office,02/11/2020,Pay Costs,IT Directorate,Alexander Mann Solutions Limited,2218241,"10,196.57",Not Applicable
Department for Business Energy and Industrial Strategy,Intellectual Property Office,02/11/2020,Pay Costs,IT Directorate,Alexander Mann Solutions Limited,2218248,"2,930.40",Not Applicable
Department for Business Energy and Industrial Strategy,Intellectual Property Office,02/11/2020,Pay Costs,Projects,Alexander Mann Solutions Limited,2218254,"3,183.97",Not Applicable
Department for Business Energy and Industrial Strategy,Intellectual Property Office,02/11/2020,Pay Costs,IT Directorate,Alexander Mann Solutions Limited,2218256,"2,651.86",Not Applicable
Department for Business Energy and Industrial Strategy,Intellectual Property Office,02/11/2020,Pay Costs,Patent Directorate,Alexander Mann Solutions Limited,2218257,"1,197.76",Not Applicable
Department for Business Energy and Industrial Strategy,Intellectual Property Office,02/11/2020,Pay Costs,People Places & Serv Directorate,Alexander Mann Solutions Limited,2218259,667.24,Not Applicable
Department for Business Energy and Industrial Strategy,Intellectual Property Office,09/11/2020,Pay Costs,Patent Directorate,Alexander Mann Solutions Limited,2220376,680.34,Not Applicable
Department for Business Energy and Industrial Strategy,Intellectual Property Office,09/11/2020,Pay Costs,Patent Directorate,Alexander Mann Solutions Limited,2220377,629,Not Applicable
Department for Business Energy and Industrial Strategy,Intellectual Property Office,09/11/2020,Pay Costs,IT Directorate,Alexander Mann Solutions Limited,2220378,"2,447.95",Not Applicable
Department for Business Energy and Industrial Strategy,Intellectual Property Office,09/11/2020,Pay Costs,Patent Directorate,Alexander Mann Solutions Limited,2220380,666.64,Not Applicable
Department for Business Energy and Industrial Strategy,Intellectual Property Office,10/11/2020,Pay Costs,IT Directorate,Alexander Mann Solutions Limited,2220381,"1,606.28",Not Applicable
Department for Business Energy and Industrial Strategy,Intellectual Property Office,09/11/2020,Other FA at Cost,IT Directorate,Alexander Mann Solutions Limited,2220382,"1,890.18",Not Applicable
Department for Business Energy and Industrial Strategy,Intellectual Property Office,09/11/2020,Pay Costs,Projects,Alexander Mann Solutions Limited,2220383,"3,339.24",Not Applicable
Department for Business Energy and Industrial Strategy,Intellectual Property Office,09/11/2020,Pay Costs,Projects,Alexander Mann Solutions Limited,2220384,"3,120.00",Not Applicable
Department for Business Energy and Industrial Strategy,Intellectual Property Office,09/11/2020,Other FA at Cost,IT Directorate,Alexander Mann Solutions Limited,2220385,"3,231.06",Not Applicable
Department for Business Energy and Industrial Strategy,Intellectual Property Office,09/11/2020,Pay Costs,Finance Directorate,Alexander Mann Solutions Limited,2220386,"1,484.14",Not Applicable
Department for Business Energy and Industrial Strategy,Intellectual Property Office,09/11/2020,Pay Costs,Patent Directorate,Alexander Mann Solutions Limited,2220387,611.1,Not Applicable
Department for Business Energy and Industrial Strategy,Intellectual Property Office,17/11/2020,Pay Costs,IT Directorate,Alexander Mann Solutions Limited,2220388,"6,797.71",Not Applicable
Department for Business Energy and Industrial Strategy,Intellectual Property Office,10/11/2020,Pay Costs,Innovation Directorate,Alexander Mann Solutions Limited,2220389,675.77,Not Applicable
Department for Business Energy and Industrial Strategy,Intellectual Property Office,10/11/2020,Pay Costs,Projects,Alexander Mann Solutions Limited,2220390,"7,560.72",Not Applicable
Department for Business Energy and Industrial Strategy,Intellectual Property Office,06/11/2020,Pay Costs,Patent Directorate,Alexander Mann Solutions Limited,2220393,697.64,Not Applicable
Department for Business Energy and Industrial Strategy,Intellectual Property Office,10/11/2020,Pay Costs,IT Directorate,Alexander Mann Solutions Limited,2220394,"6,132.50",Not Applicable
Department for Business Energy and Industrial Strategy,Intellectual Property Office,10/11/2020,Pay Costs,IT Directorate,Alexander Mann Solutions Limited,2220395,"5,822.04",Not Applicable
Department for Business Energy and Industrial Strategy,Intellectual Property Office,06/11/2020,Pay Costs,Patent Directorate,Alexander Mann Solutions Limited,2220396,675.77,Not Applicable
Department for Business Energy and Industrial Strategy,Intellectual Property Office,06/11/2020,Pay Costs,Patent Directorate,Alexander Mann Solutions Limited,2220397,675.77,Not Applicable
Department for Business Energy and Industrial Strategy,Intellectual Property Office,10/11/2020,Pay Costs,Patent Directorate,Alexander Mann Solutions Limited,2220398,"1,324.01",Not Applicable
Department for Business Energy and Industrial Strategy,Intellectual Property Office,06/11/2020,Pay Costs,Patent Directorate,Alexander Mann Solutions Limited,2220399,675.77,Not Applicable
Department for Business Energy and Industrial Strategy,Intellectual Property Office,10/11/2020,Pay Costs,Projects,Alexander Mann Solutions Limited,2220400,"3,351.64",Not Applicable
Department for Business Energy and Industrial Strategy,Intellectual Property Office,09/11/2020,Pay Costs,Patent Directorate,Alexander Mann Solutions Limited,2220401,670.96,Not Applicable
Department for Business Energy and Industrial Strategy,Intellectual Property Office,10/11/2020,Pay Costs,Patent Directorate,Alexander Mann Solutions Limited,2220402,602.95,Not Applicable
Department for Business Energy and Industrial Strategy,Intellectual Property Office,10/11/2020,Pay Costs,Patent Directorate,Alexander Mann Solutions Limited,2220403,648.18,Not Applicable
Department for Business Energy and Industrial Strategy,Intellectual Property Office,09/11/2020,Pay Costs,People Places & Serv Directorate,Alexander Mann Solutions Limited,2220404,648.59,Not Applicable
Department for Business Energy and Industrial Strategy,Intellectual Property Office,18/11/2020,Pay Costs,Patent Directorate,Alexander Mann Solutions Limited,2222566,684.9,Not Applicable
Department for Business Energy and Industrial Strategy,Intellectual Property Office,17/11/2020,Pay Costs,Patent Directorate,Alexander Mann Solutions Limited,2222567,"2,086.67",Not Applicable
Department for Business Energy and Industrial Strategy,Intellectual Property Office,17/11/2020,Pay Costs,Patent Directorate,Alexander Mann Solutions Limited,2222568,623.26,Not Applicable
Department for Business Energy and Industrial Strategy,Intellectual Property Office,17/11/2020,Pay Costs,Patent Directorate,Alexander Mann Solutions Limited,2222569,"1,121.86",Not Applicable
Department for Business Energy and Industrial Strategy,Intellectual Property Office,17/11/2020,Pay Costs,Patent Directorate,Alexander Mann Solutions Limited,2222570,"1,246.51",Not Applicable
Department for Business Energy and Industrial Strategy,Intellectual Property Office,16/11/2020,Pay Costs,IT Directorate,Alexander Mann Solutions Limited,2222571,755.6,Not Applicable
Department for Business Energy and Industrial Strategy,Intellectual Property Office,16/11/2020,Pay Costs,Patent Directorate,Alexander Mann Solutions Limited,2222572,"1,378.94",Not Applicable
Department for Business Energy and Industrial Strategy,Intellectual Property Office,17/11/2020,Pay Costs,Patent Directorate,Alexander Mann Solutions Limited,2222573,675.77,Not Applicable
Department for Business Energy and Industrial Strategy,Intellectual Property Office,18/11/2020,Pay Costs,Patent Directorate,Alexander Mann Solutions Limited,2222574,605.11,Not Applicable
Department for Business Energy and Industrial Strategy,Intellectual Property Office,18/11/2020,Pay Costs,Patent Directorate,Alexander Mann Solutions Limited,2222575,"1,406.33",Not Applicable
Department for Business Energy and Industrial Strategy,Intellectual Property Office,16/11/2020,Pay Costs,IT Directorate,Alexander Mann Solutions Limited,2222576,"3,996.48",Not Applicable
Department for Business Energy and Industrial Strategy,Intellectual Property Office,18/11/2020,Pay Costs,Patent Directorate,Alexander Mann Solutions Limited,2222578,744.26,Not Applicable
Department for Business Energy and Industrial Strategy,Intellectual Property Office,18/11/2020,Pay Costs,IT Directorate,Alexander Mann Solutions Limited,2222579,820.66,Not Applicable
Department for Business Energy and Industrial Strategy,Intellectual Property Office,16/11/2020,Other FA at Cost,IT Directorate,Alexander Mann Solutions Limited,2222580,"1,890.18",Not Applicable
Department for Business Energy and Industrial Strategy,Intellectual Property Office,16/11/2020,Pay Costs,Projects,Alexander Mann Solutions Limited,2222581,"3,339.24",Not Applicable
Department for Business Energy and Industrial Strategy,Intellectual Property Office,16/11/2020,Pay Costs,Projects,Alexander Mann Solutions Limited,2222582,"3,900.00",Not Applicable
Department for Business Energy and Industrial Strategy,Intellectual Property Office,16/11/2020,Other FA at Cost,IT Directorate,Alexander Mann Solutions Limited,2222583,"3,281.29",Not Applicable
Department for Business Energy and Industrial Strategy,Intellectual Property Office,16/11/2020,Pay Costs,Finance Directorate,Alexander Mann Solutions Limited,2222584,"2,409.79",Not Applicable
Department for Business Energy and Industrial Strategy,Intellectual Property Office,18/11/2020,Pay Costs,Patent Directorate,Alexander Mann Solutions Limited,2222585,602.95,Not Applicable
Department for Business Energy and Industrial Strategy,Intellectual Property Office,16/11/2020,Pay Costs,IT Directorate,Alexander Mann Solutions Limited,2222587,"3,466.74",Not Applicable
Department for Business Energy and Industrial Strategy,Intellectual Property Office,18/11/2020,Pay Costs,Patent Directorate,Alexander Mann Solutions Limited,2222589,577.64,Not Applicable
Department for Business Energy and Industrial Strategy,Intellectual Property Office,16/11/2020,Pay Costs,IT Directorate,Alexander Mann Solutions Limited,2222590,"2,930.40",Not Applicable
Department for Business Energy and Industrial Strategy,Intellectual Property Office,16/11/2020,Pay Costs,IT Directorate,Alexander Mann Solutions Limited,2222591,"3,040.21",Not Applicable
Department for Business Energy and Industrial Strategy,Intellectual Property Office,18/11/2020,Pay Costs,Patent Directorate,Alexander Mann Solutions Limited,2222592,675.77,Not Applicable
Department for Business Energy and Industrial Strategy,Intellectual Property Office,18/11/2020,Pay Costs,Patent Directorate,Alexander Mann Solutions Limited,2222593,675.77,Not Applicable
Department for Business Energy and Industrial Strategy,Intellectual Property Office,17/11/2020,Pay Costs,Patent Directorate,Alexander Mann Solutions Limited,2222594,"1,222.20",Not Applicable
Department for Business Energy and Industrial Strategy,Intellectual Property Office,18/11/2020,Pay Costs,Patent Directorate,Alexander Mann Solutions Limited,2222595,662,Not Applicable
Department for Business Energy and Industrial Strategy,Intellectual Property Office,18/11/2020,Pay Costs,Patent Directorate,Alexander Mann Solutions Limited,2222596,675.77,Not Applicable
Department for Business Energy and Industrial Strategy,Intellectual Property Office,17/11/2020,Pay Costs,IT Directorate,Alexander Mann Solutions Limited,2222597,"5,512.50",Not Applicable
Department for Business Energy and Industrial Strategy,Intellectual Property Office,16/11/2020,Pay Costs,Projects,Alexander Mann Solutions Limited,2222598,"3,500.48",Not Applicable
Department for Business Energy and Industrial Strategy,Intellectual Property Office,18/11/2020,Pay Costs,Patent Directorate,Alexander Mann Solutions Limited,2222599,670.96,Not Applicable
Department for Business Energy and Industrial Strategy,Intellectual Property Office,17/11/2020,Pay Costs,IT Directorate,Alexander Mann Solutions Limited,2222600,"5,409.78",Not Applicable
Department for Business Energy and Industrial Strategy,Intellectual Property Office,18/11/2020,Pay Costs,Patent Directorate,Alexander Mann Solutions Limited,2222601,602.95,Not Applicable
Department for Business Energy and Industrial Strategy,Intellectual Property Office,18/11/2020,Pay Costs,Patent Directorate,Alexander Mann Solutions Limited,2222602,623.26,Not Applicable
Department for Business Energy and Industrial Strategy,Intellectual Property Office,18/11/2020,Pay Costs,People Places & Serv Directorate,Alexander Mann Solutions Limited,2222603,662,Not Applicable
Department for Business Energy and Industrial Strategy,Intellectual Property Office,16/11/2020,Pay Costs,IT Directorate,Alexander Mann Solutions Limited,2222604,"1,918.78",Not Applicable
Department for Business Energy and Industrial Strategy,Intellectual Property Office,17/11/2020,Pay Costs,Finance Directorate,Alexander Mann Solutions Limited,2222605,662,Not Applicable
Department for Business Energy and Industrial Strategy,Intellectual Property Office,16/11/2020,Pay Costs,Finance Directorate,Alexander Mann Solutions Limited,2222606,"3,079.62",Not Applicable
Department for Business Energy and Industrial Strategy,Intellectual Property Office,16/11/2020,Pay Costs,Projects,Alexander Mann Solutions Limited,2222607,"3,742.55",Not Applicable
Department for Business Energy and Industrial Strategy,Intellectual Property Office,30/11/2020,Pay Costs,IT Directorate,Alexander Mann Solutions Limited,2224939,"2,559.22",Not Applicable
Department for Business Energy and Industrial Strategy,Intellectual Property Office,26/11/2020,Pay Costs,Patent Directorate,Alexander Mann Solutions Limited,2224951,"1,277.45",Not Applicable
Department for Business Energy and Industrial Strategy,Intellectual Property Office,26/11/2020,Pay Costs,Patent Directorate,Alexander Mann Solutions Limited,2224957,591.66,Not Applicable
Department for Business Energy and Industrial Strategy,Intellectual Property Office,23/11/2020,Pay Costs,IT Directorate,Alexander Mann Solutions Limited,2224959,805.64,Not Applicable
Department for Business Energy and Industrial Strategy,Intellectual Property Office,23/11/2020,Other FA at Cost,IT Directorate,Alexander Mann Solutions Limited,2224960,"1,890.18",Not Applicable
Department for Business Energy and Industrial Strategy,Intellectual Property Office,23/11/2020,Pay Costs,Projects,Alexander Mann Solutions Limited,2224961,"3,339.24",Not Applicable
Department for Business Energy and Industrial Strategy,Intellectual Property Office,23/11/2020,Pay Costs,Projects,Alexander Mann Solutions Limited,2224962,"3,120.00",Not Applicable
Department for Business Energy and Industrial Strategy,Intellectual Property Office,23/11/2020,Other FA at Cost,IT Directorate,Alexander Mann Solutions Limited,2224963,"3,238.73",Not Applicable
Department for Business Energy and Industrial Strategy,Intellectual Property Office,23/11/2020,Pay Costs,Finance Directorate,Alexander Mann Solutions Limited,2224964,"2,422.91",Not Applicable
Department for Business Energy and Industrial Strategy,Intellectual Property Office,23/11/2020,Pay Costs,Projects,Alexander Mann Solutions Limited,2224967,"7,560.72",Not Applicable
Department for Business Energy and Industrial Strategy,Intellectual Property Office,23/11/2020,Pay Costs,IT Directorate,Alexander Mann Solutions Limited,2224968,"6,924.17",Not Applicable
Department for Business Energy and Industrial Strategy,Intellectual Property Office,26/11/2020,Pay Costs,Patent Directorate,Alexander Mann Solutions Limited,2224969,609.02,Not Applicable
Department for Business Energy and Industrial Strategy,Intellectual Property Office,23/11/2020,Pay Costs,Patent Directorate,Alexander Mann Solutions Limited,2224970,581.7,Not Applicable
Department for Business Energy and Industrial Strategy,Intellectual Property Office,23/11/2020,Pay Costs,IT Directorate,Alexander Mann Solutions Limited,2224972,"2,930.40",Not Applicable
Department for Business Energy and Industrial Strategy,Intellectual Property Office,23/11/2020,Pay Costs,IT Directorate,Alexander Mann Solutions Limited,2224973,"3,128.60",Not Applicable
Department for Business Energy and Industrial Strategy,Intellectual Property Office,23/11/2020,Pay Costs,Patent Directorate,Alexander Mann Solutions Limited,2224974,675.77,Not Applicable
Department for Business Energy and Industrial Strategy,Intellectual Property Office,23/11/2020,Pay Costs,Patent Directorate,Alexander Mann Solutions Limited,2224975,662,Not Applicable
Department for Business Energy and Industrial Strategy,Intellectual Property Office,20/11/2020,Pay Costs,Patent Directorate,Alexander Mann Solutions Limited,2224976,675.77,Not Applicable
Department for Business Energy and Industrial Strategy,Intellectual Property Office,23/11/2020,Pay Costs,Projects,Alexander Mann Solutions Limited,2224977,"3,362.40",Not Applicable
Department for Business Energy and Industrial Strategy,Intellectual Property Office,20/11/2020,Pay Costs,IT Directorate,Alexander Mann Solutions Limited,2224978,"2,651.86",Not Applicable
Department for Business Energy and Industrial Strategy,Intellectual Property Office,23/11/2020,Pay Costs,Patent Directorate,Alexander Mann Solutions Limited,2224979,614.94,Not Applicable
Department for Business Energy and Industrial Strategy,Intellectual Property Office,23/11/2020,Pay Costs,Patent Directorate,Alexander Mann Solutions Limited,2224980,598.32,Not Applicable
Department for Business Energy and Industrial Strategy,Intellectual Property Office,23/11/2020,Pay Costs,People Places & Serv Directorate,Alexander Mann Solutions Limited,2224981,662,Not Applicable
Department for Business Energy and Industrial Strategy,Intellectual Property Office,23/11/2020,Pay Costs,IT Directorate,Alexander Mann Solutions Limited,2224982,"4,760.62",Not Applicable
Department for Business Energy and Industrial Strategy,Intellectual Property Office,23/11/2020,Pay Costs,Finance Directorate,Alexander Mann Solutions Limited,2224983,689.6,Not Applicable
Department for Business Energy and Industrial Strategy,Intellectual Property Office,23/11/2020,Pay Costs,Finance Directorate,Alexander Mann Solutions Limited,2224984,"3,079.62",Not Applicable
Department for Business Energy and Industrial Strategy,Intellectual Property Office,23/11/2020,Pay Costs,Projects,Alexander Mann Solutions Limited,2224985,"3,460.09",Not Applicable
Department for Business Energy and Industrial Strategy,Intellectual Property Office,23/11/2020,Pay Costs,Patent Directorate,Alexander Mann Solutions Limited,2224987,796.2,Not Applicable
Department for Business Energy and Industrial Strategy,Intellectual Property Office,30/11/2020,Pay Costs,Patent Directorate,Alexander Mann Solutions Limited,2227504,"1,945.12",Not Applicable
Department for Business Energy and Industrial Strategy,Intellectual Property Office,30/11/2020,Pay Costs,Patent Directorate,Alexander Mann Solutions Limited,2227510,"1,388.06",Not Applicable
Department for Business Energy and Industrial Strategy,Intellectual Property Office,30/11/2020,Other FA at Cost,IT Directorate,Alexander Mann Solutions Limited,2227514,"1,890.18",Not Applicable
Department for Business Energy and Industrial Strategy,Intellectual Property Office,30/11/2020,Pay Costs,Projects,Alexander Mann Solutions Limited,2227515,"3,339.24",Not Applicable
Department for Business Energy and Industrial Strategy,Intellectual Property Office,30/11/2020,Other FA at Cost,IT Directorate,Alexander Mann Solutions Limited,2227517,"3,189.35",Not Applicable
Department for Business Energy and Industrial Strategy,Intellectual Property Office,30/11/2020,Pay Costs,Finance Directorate,Alexander Mann Solutions Limited,2227518,"2,558.21",Not Applicable
Department for Business Energy and Industrial Strategy,Intellectual Property Office,30/11/2020,Pay Costs,IT Directorate,Alexander Mann Solutions Limited,2227519,"3,398.86",Not Applicable
Department for Business Energy and Industrial Strategy,Intellectual Property Office,30/11/2020,Pay Costs,IT Directorate,Alexander Mann Solutions Limited,2227520,"6,797.71",Not Applicable
Department for Business Energy and Industrial Strategy,Intellectual Property Office,30/11/2020,Pay Costs,Projects,Alexander Mann Solutions Limited,2227522,"3,780.36",Not Applicable
Department for Business Energy and Industrial Strategy,Intellectual Property Office,30/11/2020,Pay Costs,IT Directorate,Alexander Mann Solutions Limited,2227523,"3,485.38",Not Applicable
Department for Business Energy and Industrial Strategy,Intellectual Property Office,30/11/2020,Pay Costs,IT Directorate,Alexander Mann Solutions Limited,2227539,"2,380.62",Not Applicable
Department for Business Energy and Industrial Strategy,Intellectual Property Office,30/11/2020,Pay Costs,Finance Directorate,Alexander Mann Solutions Limited,2227541,"3,079.62",Not Applicable
Department for Business Energy and Industrial Strategy,Intellectual Property Office,30/11/2020,Pay Costs,Projects,Alexander Mann Solutions Limited,2227542,"3,742.55",Not Applicable
Department for Business Energy and Industrial Strategy,Intellectual Property Office,03/11/2020,Accommodation,People Places & Serv Directorate,CBRE Managed Services Ltd,S00796355,"1,949.12",Not Applicable
Department for Business Energy and Industrial Strategy,Intellectual Property Office,03/11/2020,Accommodation,People Places & Serv Directorate,CBRE Managed Services Ltd,S00807280,"1,949.12",Not Applicable
Department for Business Energy and Industrial Strategy,Intellectual Property Office,03/11/2020,Accommodation,People Places & Serv Directorate,CBRE Managed Services Ltd,S00816360,"1,949.12",Not Applicable
Department for Business Energy and Industrial Strategy,Intellectual Property Office,09/11/2020,Supporting UK Business,Copyright and Enforcement Directorate,ALAN CRONIN,81020,"1,000.00",Not Applicable
Department for Business Energy and Industrial Strategy,Intellectual Property Office,02/11/2020,Miscellaneous Expenses General,IT Directorate,DYNATRACE LIMITED,GBR-2004308,"1,908.00",Not Applicable
Department for Business Energy and Industrial Strategy,Intellectual Property Office,24/11/2020,Other FA at Cost,IT Directorate,Empyrean Digital Ltd,EMP-327,"57,600.00",Not Applicable
Department for Business Energy and Industrial Strategy,Intellectual Property Office,05/11/2020,Pay Costs,Projects,Empyrean Digital Ltd,EMP-342,"10,944.41",Not Applicable
Department for Business Energy and Industrial Strategy,Intellectual Property Office,05/11/2020,Pay Costs,Projects,Empyrean Digital Ltd,EMP-343,"30,720.00",Not Applicable
Department for Business Energy and Industrial Strategy,Intellectual Property Office,05/11/2020,Pay Costs,Projects,Empyrean Digital Ltd,EMP-344,"18,480.00",Not Applicable
Department for Business Energy and Industrial Strategy,Intellectual Property Office,05/11/2020,Pay Costs,Projects,Empyrean Digital Ltd,EMP-345,"18,480.00",Not Applicable
Department for Business Energy and Industrial Strategy,Intellectual Property Office,18/11/2020,Other FA at Cost,IT Directorate,Empyrean Digital Ltd,EMP-346,"54,000.00",Not Applicable
Department for Business Energy and Industrial Strategy,Intellectual Property Office,05/11/2020,Information Technology,IT Directorate,Empyrean Digital Ltd,EMP-347,"14,040.00",Not Applicable
Department for Business Energy and Industrial Strategy,Intellectual Property Office,17/11/2020,Information Technology,Projects,Empyrean Digital Ltd,EMP-348,"125,295.00",Not Applicable
Department for Business Energy and Industrial Strategy,Intellectual Property Office,17/11/2020,Information Technology,Projects,Empyrean Digital Ltd,EMP-349,"83,287.50",Not Applicable
Department for Business Energy and Industrial Strategy,Intellectual Property Office,25/11/2020,Information Technology,Projects,Empyrean Digital Ltd,EMP-350,"69,105.00",Not Applicable
Department for Business Energy and Industrial Strategy,Intellectual Property Office,25/11/2020,Information Technology,Projects,Empyrean Digital Ltd,EMP-351,"52,372.50",Not Applicable
Department for Business Energy and Industrial Strategy,Intellectual Property Office,26/11/2020,Accommodation,People Places & Serv Directorate,Government Property Agency,00000001-4975,"2,424.19",Not Applicable
Department for Business Energy and Industrial Strategy,Intellectual Property Office,26/11/2020,Accommodation,People Places & Serv Directorate,Government Property Agency,00000001-4976,"78,471.64",Not Applicable
Department for Business Energy and Industrial Strategy,Intellectual Property Office,03/11/2020,Accommodation,People Places & Serv Directorate,Government Property Agency,00000001/4803,872.79,Not Applicable
Department for Business Energy and Industrial Strategy,Intellectual Property Office,25/11/2020,Other FA at Cost,IT Directorate,Tria Recruitment Limited,8270,"8,820.00",Not Applicable
Department for Business Energy and Industrial Strategy,Intellectual Property Office,09/11/2020,Other FA at Cost,IT Directorate,Tria Recruitment Limited,8334,"26,250.00",Not Applicable
Department for Business Energy and Industrial Strategy,Intellectual Property Office,09/11/2020,Other FA at Cost,IT Directorate,Tria Recruitment Limited,8335,"24,375.00",Not Applicable
Department for Business Energy and Industrial Strategy,Intellectual Property Office,09/11/2020,Other FA at Cost,IT Directorate,Tria Recruitment Limited,8336,"16,500.00",Not Applicable
Department for Business Energy and Industrial Strategy,Intellectual Property Office,09/11/2020,Other FA at Cost,IT Directorate,Tria Recruitment Limited,8337,"16,500.00",Not Applicable
Department for Business Energy and Industrial Strategy,Intellectual Property Office,09/11/2020,Other FA at Cost,IT Directorate,Tria Recruitment Limited,8338,"20,625.00",Not Applicable
Department for Business Energy and Industrial Strategy,Intellectual Property Office,10/11/2020,Other FA at Cost,IT Directorate,Tria Recruitment Limited,8339,"24,375.00",Not Applicable
Department for Business Energy and Industrial Strategy,Intellectual Property Office,09/11/2020,Other FA at Cost,IT Directorate,Tria Recruitment Limited,8340,"20,625.00",Not Applicable
Department for Business Energy and Industrial Strategy,Intellectual Property Office,25/11/2020,Other FA at Cost,IT Directorate,Tria Recruitment Limited,8341,"22,050.00",Not Applicable
Department for Business Energy and Industrial Strategy,Intellectual Property Office,09/11/2020,Other FA at Cost,IT Directorate,Tria Recruitment Limited,8342,"16,200.00",Not Applicable
Department for Business Energy and Industrial Strategy,Intellectual Property Office,09/11/2020,Other FA at Cost,IT Directorate,Tria Recruitment Limited,8343,"15,000.00",Not Applicable
Department for Business Energy and Industrial Strategy,Intellectual Property Office,09/11/2020,Other FA at Cost,IT Directorate,Tria Recruitment Limited,8344,"23,437.50",Not Applicable
Department for Business Energy and Industrial Strategy,Intellectual Property Office,09/11/2020,Information Technology,IT Directorate,Tria Recruitment Limited,8345,"15,750.00",Not Applicable
Department for Business Energy and Industrial Strategy,Intellectual Property Office,09/11/2020,Information Technology,IT Directorate,Tria Recruitment Limited,TRX-1518,"61,800.00",Not Applicable
Department for Business Energy and Industrial Strategy,Intellectual Property Office,27/11/2020,Overseas Patent Specifications,Patent Directorate,Sage Publications,H57720201201rvwulgwsw,38.61,Not Applicable
Department for Business Energy and Industrial Strategy,Intellectual Property Office,26/11/2020,Career Development Services,People Places & Serv Directorate,Www.Store.Cipd.Co.Uk,H57720201128bhrsjmoho,-96,Not Applicable
Department for Business Energy and Industrial Strategy,Intellectual Property Office,26/11/2020,Other,People Places & Serv Directorate,Amznmktplace,H57720201128hkrtdqngl,28.79,Not Applicable
Department for Business Energy and Industrial Strategy,Intellectual Property Office,26/11/2020,Office Stationery,People Places & Serv Directorate,Amznmktplace,H57720201128nfcbvovyi,24.48,Not Applicable
Department for Business Energy and Industrial Strategy,Intellectual Property Office,24/11/2020,Overseas Patent Specifications,Patent Directorate,Www.Springer.Com,H57720201127idldtetvm,34.95,Not Applicable
Department for Business Energy and Industrial Strategy,Intellectual Property Office,25/11/2020,Career Development Services,People Places & Serv Directorate,Www.Store.Cipd.Co.Uk,H57720201127wcocphtbx,"1,056.00",Not Applicable
Department for Business Energy and Industrial Strategy,Intellectual Property Office,25/11/2020,Office Stationery,People Places & Serv Directorate,Amznmktplace,H57720201127xzqmniigp,34.98,Not Applicable
Department for Business Energy and Industrial Strategy,Intellectual Property Office,24/11/2020,Innovation Policy,Innovation Directorate,Paypal,H57720201126bqbxnrnhw,195,Not Applicable
Department for Business Energy and Industrial Strategy,Intellectual Property Office,24/11/2020,Software Maintenance,IT Directorate,Www.Imagestore.Co.Uk,H57720201126oijtxvgbi,203.09,Not Applicable
Department for Business Energy and Industrial Strategy,Intellectual Property Office,25/11/2020,Overseas Patent Specifications,Patent Directorate,"John Wiley & Sons, Inc",H57720201126psygaugss,45.7,Not Applicable
Department for Business Energy and Industrial Strategy,Intellectual Property Office,24/11/2020,Office Stationery,People Places & Serv Directorate,Amznmktplace,H57720201126xkwcmtiuv,25.48,Not Applicable
Department for Business Energy and Industrial Strategy,Intellectual Property Office,23/11/2020,Career Development Services,Innovation Directorate,Beyondconference.Org,H57720201125flivoyuhy,117.6,Not Applicable
Department for Business Energy and Industrial Strategy,Intellectual Property Office,20/11/2020,Office Stationery,People Places & Serv Directorate,Posturite Ltd,H57720201124dgxnumxod,76,Not Applicable
Department for Business Energy and Industrial Strategy,Intellectual Property Office,22/11/2020,Overseas Patent Specifications,Patent Directorate,Proquestebs 7349974150,H57720201124fjebxwsnl,38.26,Not Applicable
Department for Business Energy and Industrial Strategy,Intellectual Property Office,20/11/2020,Books,Trade Mark Directorate,The Intellectual Property,H57720201124kccjqapuk,-50,Not Applicable
Department for Business Energy and Industrial Strategy,Intellectual Property Office,20/11/2020,Overseas Patent Specifications,Patent Directorate,The Intellectual Property,H57720201124lyagnuidq,-5,Not Applicable
Department for Business Energy and Industrial Strategy,Intellectual Property Office,20/11/2020,Books,Trade Mark Directorate,The Intellectual Property,H57720201124zhhglboqt,-100,Not Applicable
Department for Business Energy and Industrial Strategy,Intellectual Property Office,19/11/2020,Office Stationery,People Places & Serv Directorate,Amznmktplace,H57720201121ejvbbutzc,8.98,Not Applicable
Department for Business Energy and Industrial Strategy,Intellectual Property Office,17/11/2020,Office Stationery,People Places & Serv Directorate,Amznmktplace Amazon.Co.Uk,H57720201120ndguymdjj,32.48,Not Applicable
Department for Business Energy and Industrial Strategy,Intellectual Property Office,17/11/2020,Office Stationery,People Places & Serv Directorate,Www.Directhygiene.Com,H57720201119fxdjejcsk,140.1,Not Applicable
Department for Business Energy and Industrial Strategy,Intellectual Property Office,17/11/2020,Office Stationery,People Places & Serv Directorate,South Wales Suppliers,H57720201119hhcbruutw,64.8,Not Applicable
Department for Business Energy and Industrial Strategy,Intellectual Property Office,17/11/2020,Office Stationery,People Places & Serv Directorate,Screwfix Direct,H57720201119kszaidnjy,52.8,Not Applicable
Department for Business Energy and Industrial Strategy,Intellectual Property Office,17/11/2020,Career Development Services,Copyright and Enforcement Directorate,Eb *acg Online Symposi,H57720201119pfjlewnwx,60,Not Applicable
Department for Business Energy and Industrial Strategy,Intellectual Property Office,16/11/2020,Career Development Services,International Policy Directorate,Capita Business Servs,H57720201118xfbuocbuz,834.22,Not Applicable
Department for Business Energy and Industrial Strategy,Intellectual Property Office,16/11/2020,Career Development Services,People Places & Serv Directorate,Nicabm,H57720201118znjyhicrk,232.49,Not Applicable
Department for Business Energy and Industrial Strategy,Intellectual Property Office,14/11/2020,Books,Trade Mark Directorate,The Intellectual Property,H57720201117exzcdcyqf,50,Not Applicable
Department for Business Energy and Industrial Strategy,Intellectual Property Office,14/11/2020,Overseas Patent Specifications,Patent Directorate,The Intellectual Property,H57720201117giwbubwdl,5,Not Applicable
Department for Business Energy and Industrial Strategy,Intellectual Property Office,14/11/2020,Books,Trade Mark Directorate,The Intellectual Property,H57720201117kosgkkcps,100,Not Applicable
Department for Business Energy and Industrial Strategy,Intellectual Property Office,13/11/2020,Minor Works-Goods,People Places & Serv Directorate,Amznmktplace,H57720201117xkrnvikme,361.2,Not Applicable
Department for Business Energy and Industrial Strategy,Intellectual Property Office,12/11/2020,Office Stationery,People Places & Serv Directorate,Shreddingmachines.Couk,H57720201114qsoeccsng,317.7,Not Applicable
Department for Business Energy and Industrial Strategy,Intellectual Property Office,12/11/2020,Career Development Services,People Places & Serv Directorate,Government Events,H57720201114ubbtojwjw,346.8,Not Applicable
Department for Business Energy and Industrial Strategy,Intellectual Property Office,12/11/2020,Ad-hoc IT Services,IT Directorate,Digicert Inc,H57720201114uekihslrp,423.46,Not Applicable
Department for Business Energy and Industrial Strategy,Intellectual Property Office,12/11/2020,Office Stationery,People Places & Serv Directorate,South Wales Suppliers,H57720201114uprtklfgm,38.4,Not Applicable
Department for Business Energy and Industrial Strategy,Intellectual Property Office,11/11/2020,Office Stationery,People Places & Serv Directorate,Amznmktplace,H57720201113eqkajyiik,29.46,Not Applicable
Department for Business Energy and Industrial Strategy,Intellectual Property Office,11/11/2020,Books Newspaper Pub(central),Patent Directorate,Road Transport Med,H57720201113hpihvpnlt,900,Not Applicable
Department for Business Energy and Industrial Strategy,Intellectual Property Office,11/11/2020,Overseas Patent Specifications,Patent Directorate,Elsevier,H57720201113nimxfeihj,26.18,Not Applicable
Department for Business Energy and Industrial Strategy,Intellectual Property Office,11/11/2020,Office Stationery,People Places & Serv Directorate,Medisupplies Ltd,H57720201113rfyqgdnzy,394.2,Not Applicable
Department for Business Energy and Industrial Strategy,Intellectual Property Office,11/11/2020,Office Stationery,People Places & Serv Directorate,Shreddingmachines.Couk,H57720201113rquwqnsee,953.1,Not Applicable
Department for Business Energy and Industrial Strategy,Intellectual Property Office,11/11/2020,Network and infrastructure H/W,IT Directorate,Amznmktplace,H57720201113vudqqlgym,84.97,Not Applicable
Department for Business Energy and Industrial Strategy,Intellectual Property Office,10/11/2020,Career Development Services,People Places & Serv Directorate,Haymarket Media Group,H57720201112aopiezmpo,294,Not Applicable
Department for Business Energy and Industrial Strategy,Intellectual Property Office,10/11/2020,Career Development Services,People Places & Serv Directorate,Haymarket Media Group,H57720201112cmaeeahvk,210,Not Applicable
Department for Business Energy and Industrial Strategy,Intellectual Property Office,10/11/2020,Career Development Services,Innovation Directorate,Datacamp Inc.,H57720201112ffrhwxkov,234.81,Not Applicable
Department for Business Energy and Industrial Strategy,Intellectual Property Office,10/11/2020,Books,Innovation Directorate,Amazon.Co.Uk,H57720201112lzvcsedaf,25.75,Not Applicable
Department for Business Energy and Industrial Strategy,Intellectual Property Office,10/11/2020,Books,Innovation Directorate,Amznmktplace Amazon.Co.Uk,H57720201112tijtgwzhz,9.53,Not Applicable
Department for Business Energy and Industrial Strategy,Intellectual Property Office,10/11/2020,Career Development Services,Projects,Www.Cipr.Co.Uk,H57720201112tkendebdk,300,Not Applicable
Department for Business Energy and Industrial Strategy,Intellectual Property Office,10/11/2020,Office Stationery,People Places & Serv Directorate,South Wales Suppliers,H57720201112wlwmgboyu,31.2,Not Applicable
Department for Business Energy and Industrial Strategy,Intellectual Property Office,09/11/2020,Office Stationery,People Places & Serv Directorate,Screwfix Direct,H57720201111hsjmzzhja,48.98,Not Applicable
Department for Business Energy and Industrial Strategy,Intellectual Property Office,09/11/2020,Network and infrastructure H/W,IT Directorate,Amznmktplace,H57720201111vkddcrigy,137.08,Not Applicable
Department for Business Energy and Industrial Strategy,Intellectual Property Office,06/11/2020,Office Stationery,People Places & Serv Directorate,Amazon.Co.Uk,H57720201110czemebycr,41.66,Not Applicable
Department for Business Energy and Industrial Strategy,Intellectual Property Office,06/11/2020,Office Stationery,People Places & Serv Directorate,Amznmktplace,H57720201110lnrgglncl,26.48,Not Applicable
Department for Business Energy and Industrial Strategy,Intellectual Property Office,05/11/2020,Office Stationery,People Places & Serv Directorate,Ikea Ltd Shop Online,H57720201110pjbmdjtdg,540,Not Applicable
Department for Business Energy and Industrial Strategy,Intellectual Property Office,05/11/2020,Office Stationery,People Places & Serv Directorate,Ikea Ltd Shop Online,H57720201110rlnzhcxib,840,Not Applicable
Department for Business Energy and Industrial Strategy,Intellectual Property Office,07/11/2020,Office Stationery,People Places & Serv Directorate,Amznmktplace,H57720201110tfkcvcjre,64.96,Not Applicable
Department for Business Energy and Industrial Strategy,Intellectual Property Office,07/11/2020,Office Stationery,People Places & Serv Directorate,Amznmktplace,H57720201110vqrjywpgc,16.48,Not Applicable
Department for Business Energy and Industrial Strategy,Intellectual Property Office,05/11/2020,Career Development Services,People Places & Serv Directorate,Sirculaltd D&i Leaders,H57720201107kswoggkpo,961.2,Not Applicable
Department for Business Energy and Industrial Strategy,Intellectual Property Office,05/11/2020,Ad-hoc IT Services,IT Directorate,Www.Ja.Net,H57720201107kwylquhak,48,Not Applicable
Department for Business Energy and Industrial Strategy,Intellectual Property Office,04/11/2020,Office Stationery,People Places & Serv Directorate,Screwfix Direct,H57720201107nlteuljmt,65,Not Applicable
Department for Business Energy and Industrial Strategy,Intellectual Property Office,05/11/2020,Office Stationery,People Places & Serv Directorate,The Poppy Shop,H57720201107rhjgogecc,53.97,Not Applicable
Department for Business Energy and Industrial Strategy,Intellectual Property Office,05/11/2020,Office Stationery,People Places & Serv Directorate,T G Howell & Sons Ltd,H57720201107zpqadhlvm,49.35,Not Applicable
Department for Business Energy and Industrial Strategy,Intellectual Property Office,04/11/2020,Office Stationery,People Places & Serv Directorate,Amznmktplace,H57720201106khqefvbra,35.99,Not Applicable
Department for Business Energy and Industrial Strategy,Intellectual Property Office,04/11/2020,Overseas Patent Specifications,Patent Directorate,Elsevier,H57720201106rnjpkgofc,34.4,Not Applicable
Department for Business Energy and Industrial Strategy,Intellectual Property Office,03/11/2020,Books,Trade Mark Directorate,The Intellectual Property,H57720201105klthefjnj,-170,Not Applicable
Department for Business Energy and Industrial Strategy,Intellectual Property Office,03/11/2020,Overseas Patent Specifications,Patent Directorate,Elsevier,H57720201105pyissjhzk,40.18,Not Applicable
Department for Business Energy and Industrial Strategy,Intellectual Property Office,02/11/2020,Minor Works-Goods,People Places & Serv Directorate,Amz*uk Business Suppli,H57720201104qlpyqhaeu,-288.9,Not Applicable
Department for Business Energy and Industrial Strategy,Intellectual Property Office,02/11/2020,Perpetual Licences,IT Directorate,Namesco Ltd,H57720201104wcfwsqqdv,619.64,Not Applicable
